[Event "Titled Tuesday Blitz May 23 Late 2023"]
[White "Onslow, Alfie"]
[Black "Deviprasath, Sharvesh"]
[WhiteFideId "436976"]
[BlackFideId "30938228"]
[WhiteElo "2114"]
[BlackElo "2168"]
[Result "0-1"]
[Round "04"]
[TimeControl "180+2"]
[Date "2023.05.23"]
[WhiteClock "0:00:02"]
[BlackClock "0:01:08"]

1. e4 {[%clk 0:02:59]}  a6 {[%clk 0:02:53]} 2. a4 {[%clk 0:02:56]}  e6 {[%clk 0:02:53]} 3. d4 {[%clk 0:02:56]}  d5 {[%clk 0:02:54]} 4. exd5 {[%clk 0:02:43]}  exd5 {[%clk 0:02:54]} 5. Bd3 {[%clk 0:02:42]}  Nf6 {[%clk 0:02:54]} 6. h3 {[%clk 0:02:39]}  Bd6 {[%clk 0:02:54]} 7. Ne2 {[%clk 0:02:37]}  O-O {[%clk 0:02:54]} 8. O-O {[%clk 0:02:38]}  Re8 {[%clk 0:02:45]} 9. Bf4 {[%clk 0:02:31]}  Bf8 {[%clk 0:02:44]} 10. Nd2 {[%clk 0:02:27]}  c5 {[%clk 0:02:42]} 11. c3 {[%clk 0:02:27]}  Nc6 {[%clk 0:02:41]} 12. Nf3 {[%clk 0:02:26]}  Ne4 {[%clk 0:02:32]} 13. dxc5 {[%clk 0:02:26]}  Bxc5 {[%clk 0:02:33]} 14. Ned4 {[%clk 0:02:26]}  Bd7 {[%clk 0:02:16]} 15. Bc2 {[%clk 0:02:25]}  Qf6 {[%clk 0:01:46]} 16. Be3 {[%clk 0:02:24]}  Bd6 {[%clk 0:01:44]} 17. Nxc6 {[%clk 0:01:47]}  bxc6 {[%clk 0:01:45]} 18. Re1 {[%clk 0:01:47]}  Qg6 {[%clk 0:01:31]} 19. Kh1 {[%clk 0:01:43]}  Rab8 {[%clk 0:01:28]} 20. Ra2 {[%clk 0:01:32]}  f5 {[%clk 0:01:22]} 21. Nh4 {[%clk 0:00:19]}  Qf7 {[%clk 0:01:19]} 22. Qf3 {[%clk 0:00:12]}  f4 {[%clk 0:01:13]} 23. Bd4 {[%clk 0:00:09]}  Ng3+ {[%clk 0:01:09]} 24. fxg3 {[%clk 0:00:08]}  Rxe1+ {[%clk 0:01:09]} 25. Kh2 {[%clk 0:00:02]}  fxg3+ {[%clk 0:01:08]} 0-1


[Site "https://www.chess.com"]

[Event "Titled Tuesday Blitz May 23 Late 2023"]
[White "Szente Varga, Fruzsina"]
[Black "Janaszak, Dawid"]
[WhiteFideId "712264"]
[BlackFideId "1119206"]
[WhiteElo "1994"]
[BlackElo "2220"]
[Result "0-1"]
[Round "04"]
[TimeControl "180+2"]
[Date "2023.05.23"]
[WhiteClock "0:01:32"]
[BlackClock "0:02:20"]

1. e4 {[%clk 0:03:00]}  c5 {[%clk 0:02:59]} 2. Nf3 {[%clk 0:03:00]}  Nc6 {[%clk 0:03:00]} 3. Bb5 {[%clk 0:03:00]}  e5 {[%clk 0:03:00]} 4. O-O {[%clk 0:02:55]}  Nge7 {[%clk 0:03:00]} 5. c3 {[%clk 0:02:54]}  g6 {[%clk 0:02:58]} 6. d4 {[%clk 0:02:54]}  cxd4 {[%clk 0:02:59]} 7. cxd4 {[%clk 0:02:54]}  exd4 {[%clk 0:03:00]} 8. Nxd4 {[%clk 0:02:54]}  Bg7 {[%clk 0:03:00]} 9. Be3 {[%clk 0:02:51]}  O-O {[%clk 0:02:59]} 10. Nc3 {[%clk 0:02:51]}  d5 {[%clk 0:03:00]} 11. exd5 {[%clk 0:02:47]}  Nxd5 {[%clk 0:03:01]} 12. Bxc6 {[%clk 0:02:41]}  Nxe3 {[%clk 0:02:55]} 13. fxe3 {[%clk 0:02:39]}  bxc6 {[%clk 0:02:56]} 14. Nxc6 {[%clk 0:02:39]}  Qe8 {[%clk 0:02:48]} 15. Nb4 {[%clk 0:02:06]}  Qxe3+ {[%clk 0:02:40]} 16. Kh1 {[%clk 0:02:05]}  Bb7 {[%clk 0:02:38]} 17. Nbd5 {[%clk 0:02:02]}  Qg5 {[%clk 0:02:32]} 18. Qb3 {[%clk 0:01:57]}  Rab8 {[%clk 0:02:25]} 19. Ne4 {[%clk 0:01:32]}  Qxd5 {[%clk 0:02:20]} 0-1


[Site "https://www.chess.com"]

[Event "Titled Tuesday Blitz May 23 Late 2023"]
[White "Cruz Mendez, Jean Marco"]
[Black "Lacasa Diaz, Jose Antonio"]
[WhiteFideId "3526402"]
[BlackFideId "2203375"]
[WhiteElo "2064"]
[BlackElo "2338"]
[Result "1-0"]
[Round "04"]
[TimeControl "180+2"]
[Date "2023.05.23"]
[WhiteClock "0:00:48"]
[BlackClock "0:00:02"]

1. e4 {[%clk 0:03:00]}  c5 {[%clk 0:02:59]} 2. Nf3 {[%clk 0:02:59]}  e6 {[%clk 0:02:59]} 3. d4 {[%clk 0:02:59]}  cxd4 {[%clk 0:03:00]} 4. Nxd4 {[%clk 0:02:59]}  Nf6 {[%clk 0:03:01]} 5. Nc3 {[%clk 0:02:59]}  d6 {[%clk 0:03:01]} 6. Bg5 {[%clk 0:02:56]}  Be7 {[%clk 0:03:01]} 7. Bc4 {[%clk 0:02:56]}  h6 {[%clk 0:02:57]} 8. Be3 {[%clk 0:02:54]}  Nc6 {[%clk 0:02:50]} 9. Qe2 {[%clk 0:02:53]}  a6 {[%clk 0:02:46]} 10. Bb3 {[%clk 0:02:52]}  Qc7 {[%clk 0:02:46]} 11. O-O-O {[%clk 0:02:52]}  Na5 {[%clk 0:02:43]} 12. Kb1 {[%clk 0:02:51]}  b5 {[%clk 0:02:41]} 13. f3 {[%clk 0:02:47]}  Bd7 {[%clk 0:02:37]} 14. g4 {[%clk 0:02:43]}  Rc8 {[%clk 0:02:12]} 15. h4 {[%clk 0:02:37]}  Nc4 {[%clk 0:01:57]} 16. Bxc4 {[%clk 0:02:36]}  Qxc4 {[%clk 0:01:52]} 17. Qxc4 {[%clk 0:02:23]}  Rxc4 {[%clk 0:01:52]} 18. Nce2 {[%clk 0:02:24]}  g6 {[%clk 0:01:32]} 19. Ng3 {[%clk 0:02:21]}  e5 {[%clk 0:01:25]} 20. Nde2 {[%clk 0:02:19]}  h5 {[%clk 0:01:24]} 21. g5 {[%clk 0:02:17]}  Nh7 {[%clk 0:01:24]} 22. b3 {[%clk 0:02:15]}  Rc8 {[%clk 0:01:23]} 23. Kb2 {[%clk 0:02:13]}  O-O {[%clk 0:01:21]} 24. f4 {[%clk 0:02:12]}  f6 {[%clk 0:01:18]} 25. f5 {[%clk 0:02:03]}  Kg7 {[%clk 0:01:06]} 26. gxf6+ {[%clk 0:01:57]}  Nxf6 {[%clk 0:01:03]} 27. Bg5 {[%clk 0:01:57]}  gxf5 {[%clk 0:00:56]} 28. Nxf5+ {[%clk 0:01:52]}  Bxf5 {[%clk 0:00:53]} 29. exf5 {[%clk 0:01:53]}  Kf7 {[%clk 0:00:50]} 30. Ng3 {[%clk 0:01:49]}  Rg8 {[%clk 0:00:39]} 31. Rhf1 {[%clk 0:01:46]}  d5 {[%clk 0:00:35]} 32. Bxf6 {[%clk 0:01:41]}  Bxf6 {[%clk 0:00:35]} 33. Nxh5 {[%clk 0:01:41]}  Rg2 {[%clk 0:00:29]} 34. Rc1 {[%clk 0:01:22]}  d4 {[%clk 0:00:25]} 35. Kb1 {[%clk 0:01:16]}  Rh8 {[%clk 0:00:17]} 36. Nxf6 {[%clk 0:01:13]}  Kxf6 {[%clk 0:00:18]} 37. c4 {[%clk 0:01:06]}  Rxh4 {[%clk 0:00:17]} 38. cxb5 {[%clk 0:01:05]}  Rhh2 {[%clk 0:00:17]} 39. Rc6+ {[%clk 0:01:05]}  Kg5 {[%clk 0:00:17]} 40. Rxa6 {[%clk 0:01:05]}  Rb2+ {[%clk 0:00:14]} 41. Ka1 {[%clk 0:01:04]}  d3 {[%clk 0:00:14]} 42. f6 {[%clk 0:01:02]}  Rbf2 {[%clk 0:00:14]} 43. Rg1+ {[%clk 0:01:00]}  Kf4 {[%clk 0:00:11]} 44. f7 {[%clk 0:00:59]}  Ke3 {[%clk 0:00:11]} 45. Ra7 {[%clk 0:00:52]}  e4 {[%clk 0:00:10]} 46. b6 {[%clk 0:00:50]}  Kd2 {[%clk 0:00:03]} 47. b7 {[%clk 0:00:48]}  e3 {[%clk 0:00:03]} 48. b8=Q {[%clk 0:00:48]}  e2 {[%clk 0:00:02]} 49. Qb4+ {[%clk 0:00:48]}  Kc2 {[%clk 0:00:02]} 50. Rc7# {[%clk 0:00:48]} 1-0


[Site "https://www.chess.com"]

[Event "Titled Tuesday Blitz May 23 Late 2023"]
[White "Jimenez Almeida, Luis David"]
[Black "Bashkansky, Ethan"]
[WhiteFideId "22242244"]
[BlackFideId "2071533"]
[WhiteElo "2245"]
[BlackElo "2343"]
[Result "1-0"]
[Round "04"]
[TimeControl "180+2"]
[Date "2023.05.23"]
[WhiteClock "0:01:07"]
[BlackClock "0:00:00"]

1. e4 {[%clk 0:03:00]}  c6 {[%clk 0:03:00]} 2. Nc3 {[%clk 0:03:00]}  d5 {[%clk 0:03:01]} 3. Qf3 {[%clk 0:03:00]}  dxe4 {[%clk 0:02:58]} 4. Nxe4 {[%clk 0:03:01]}  Nd7 {[%clk 0:02:59]} 5. d4 {[%clk 0:03:00]}  Ngf6 {[%clk 0:02:59]} 6. c3 {[%clk 0:02:59]}  e5 {[%clk 0:02:52]} 7. Nxf6+ {[%clk 0:02:54]}  Qxf6 {[%clk 0:02:50]} 8. Qxf6 {[%clk 0:02:54]}  gxf6 {[%clk 0:02:50]} 9. Be3 {[%clk 0:02:51]}  Bg7 {[%clk 0:02:22]} 10. Bd3 {[%clk 0:02:47]}  O-O {[%clk 0:02:21]} 11. O-O-O {[%clk 0:02:46]}  Nb6 {[%clk 0:02:13]} 12. Ne2 {[%clk 0:02:39]}  Nd5 {[%clk 0:02:09]} 13. Ng3 {[%clk 0:02:31]}  Bg4 {[%clk 0:01:54]} 14. Rde1 {[%clk 0:02:29]}  Nxe3 {[%clk 0:01:52]} 15. fxe3 {[%clk 0:02:29]}  Rfe8 {[%clk 0:01:41]} 16. Bf5 {[%clk 0:02:25]}  Bxf5 {[%clk 0:01:38]} 17. Nxf5 {[%clk 0:02:26]}  h5 {[%clk 0:01:17]} 18. Kc2 {[%clk 0:02:21]}  Kh7 {[%clk 0:01:16]} 19. h3 {[%clk 0:02:19]}  Kg6 {[%clk 0:01:10]} 20. e4 {[%clk 0:02:03]}  Rad8 {[%clk 0:01:00]} 21. Kd3 {[%clk 0:01:52]}  b6 {[%clk 0:00:54]} 22. a4 {[%clk 0:01:41]}  Bh6 {[%clk 0:00:48]} 23. g3 {[%clk 0:01:35]}  Bg5 {[%clk 0:00:40]} 24. h4 {[%clk 0:01:31]}  Bh6 {[%clk 0:00:40]} 25. Rhg1 {[%clk 0:01:32]}  Kh7 {[%clk 0:00:28]} 26. b4 {[%clk 0:01:29]}  Rg8 {[%clk 0:00:23]} 27. Ref1 {[%clk 0:01:20]}  Rg6 {[%clk 0:00:20]} 28. Ne7 {[%clk 0:01:19]}  Rg4 {[%clk 0:00:18]} 29. Nxc6 {[%clk 0:01:19]}  Rdg8 {[%clk 0:00:14]} 30. d5 {[%clk 0:01:19]}  Rxg3+ {[%clk 0:00:13]} 31. Rxg3 {[%clk 0:01:19]}  Rxg3+ {[%clk 0:00:14]} 32. Kc4 {[%clk 0:01:20]}  Bd2 {[%clk 0:00:14]} 33. Rxf6 {[%clk 0:01:10]}  Rxc3+ {[%clk 0:00:14]} 34. Kb5 {[%clk 0:01:10]}  Kg7 {[%clk 0:00:14]} 35. Rf5 {[%clk 0:01:09]}  a6+ {[%clk 0:00:14]} 36. Kxb6 {[%clk 0:01:09]}  Bf4 {[%clk 0:00:13]} 37. Nxe5 {[%clk 0:01:07]}  Re3 {[%clk 0:00:05]} 38. Rxf7+ {[%clk 0:01:06]}  Kg8 {[%clk 0:00:00]} 39. Rxf4 {[%clk 0:01:07]} 1-0


[Site "https://www.chess.com"]

[Event "Titled Tuesday Blitz May 23 Late 2023"]
[White "Przybylski, Wojciech"]
[Black "Einarsson, Halldor Gretar"]
[WhiteFideId "1117599"]
[BlackFideId "2300150"]
[WhiteElo "2222"]
[BlackElo "2110"]
[Result "1-0"]
[Round "04"]
[TimeControl "180+2"]
[Date "2023.05.23"]
[WhiteClock "0:00:59"]
[BlackClock "0:00:04"]

1. d4 {[%clk 0:03:00]}  Nf6 {[%clk 0:02:59]} 2. c4 {[%clk 0:02:59]}  g6 {[%clk 0:02:58]} 3. Nc3 {[%clk 0:02:58]}  d5 {[%clk 0:02:58]} 4. Nf3 {[%clk 0:02:55]}  Bg7 {[%clk 0:02:58]} 5. Qb3 {[%clk 0:02:55]}  dxc4 {[%clk 0:02:54]} 6. Qxc4 {[%clk 0:02:54]}  a6 {[%clk 0:02:51]} 7. a4 {[%clk 0:02:53]}  O-O {[%clk 0:02:47]} 8. g3 {[%clk 0:02:51]}  b5 {[%clk 0:02:43]} 9. Qd3 {[%clk 0:02:48]}  b4 {[%clk 0:02:34]} 10. Nd1 {[%clk 0:02:43]}  Bf5 {[%clk 0:02:13]} 11. Qd2 {[%clk 0:02:42]}  Nc6 {[%clk 0:02:05]} 12. Ne3 {[%clk 0:02:37]}  Ne4 {[%clk 0:02:00]} 13. Qd1 {[%clk 0:02:36]}  Nxd4 {[%clk 0:01:56]} 14. Bg2 {[%clk 0:02:31]}  Nxf3+ {[%clk 0:01:42]} 15. Bxf3 {[%clk 0:02:25]}  Qxd1+ {[%clk 0:01:42]} 16. Nxd1 {[%clk 0:02:24]}  Rad8 {[%clk 0:01:38]} 17. Be3 {[%clk 0:02:11]}  c5 {[%clk 0:01:14]} 18. g4 {[%clk 0:02:09]}  Nxf2 {[%clk 0:00:46]} 19. Kxf2 {[%clk 0:02:00]}  Bc2 {[%clk 0:00:43]} 20. Bxc5 {[%clk 0:01:58]}  Bd4+ {[%clk 0:00:38]} 21. Bxd4 {[%clk 0:01:57]}  Rxd4 {[%clk 0:00:38]} 22. Ne3 {[%clk 0:01:56]}  Bb3 {[%clk 0:00:35]} 23. Rhc1 {[%clk 0:01:53]}  e5 {[%clk 0:00:35]} 24. g5 {[%clk 0:01:45]}  f5 {[%clk 0:00:31]} 25. gxf6 {[%clk 0:01:43]}  e4 {[%clk 0:00:28]} 26. Bg2 {[%clk 0:01:35]}  Rd2 {[%clk 0:00:27]} 27. Bxe4 {[%clk 0:01:25]}  Rxf6+ {[%clk 0:00:25]} 28. Ke1 {[%clk 0:01:20]}  Rxb2 {[%clk 0:00:24]} 29. Rcb1 {[%clk 0:01:17]}  Rxb1+ {[%clk 0:00:13]} 30. Rxb1 {[%clk 0:01:17]}  Bxa4 {[%clk 0:00:13]} 31. Rxb4 {[%clk 0:01:15]}  Bb5 {[%clk 0:00:14]} 32. Nd5 {[%clk 0:01:12]}  Re6 {[%clk 0:00:08]} 33. Nc7 {[%clk 0:01:08]}  Re5 {[%clk 0:00:09]} 34. Nxb5 {[%clk 0:01:00]}  axb5 {[%clk 0:00:09]} 35. Bd3 {[%clk 0:01:00]}  Kg7 {[%clk 0:00:04]} 36. Rxb5 {[%clk 0:00:59]} 1-0


[Site "https://www.chess.com"]

[Event "Titled Tuesday Blitz May 23 Late 2023"]
[White "Urbina Perez, Juan Antonio"]
[Black "Weinstein, Joshua Ross"]
[WhiteFideId "2217368"]
[BlackFideId "30927714"]
[WhiteElo "2197"]
[BlackElo "2327"]
[Result "1-0"]
[Round "04"]
[TimeControl "180+2"]
[Date "2023.05.23"]
[WhiteClock "0:00:17"]
[BlackClock "0:00:13"]

1. e4 {[%clk 0:02:53]}  d5 {[%clk 0:03:00]} 2. exd5 {[%clk 0:02:53]}  Qxd5 {[%clk 0:03:00]} 3. Nc3 {[%clk 0:02:52]}  Qa5 {[%clk 0:03:00]} 4. Nf3 {[%clk 0:02:52]}  Nf6 {[%clk 0:03:00]} 5. Bc4 {[%clk 0:02:52]}  Bg4 {[%clk 0:03:01]} 6. d3 {[%clk 0:02:50]}  Nc6 {[%clk 0:02:59]} 7. h3 {[%clk 0:02:50]}  Qh5 {[%clk 0:02:58]} 8. Bd2 {[%clk 0:02:44]}  Nd4 {[%clk 0:02:56]} 9. Ne2 {[%clk 0:02:09]}  Bxf3 {[%clk 0:02:45]} 10. gxf3 {[%clk 0:02:10]}  Nxf3+ {[%clk 0:02:45]} 11. Kf1 {[%clk 0:02:10]}  Nxd2+ {[%clk 0:02:34]} 12. Qxd2 {[%clk 0:02:11]}  e6 {[%clk 0:02:30]} 13. Ng3 {[%clk 0:02:06]}  Qh4 {[%clk 0:02:20]} 14. Qa5 {[%clk 0:01:54]}  Bd6 {[%clk 0:01:59]} 15. Qb5+ {[%clk 0:01:49]}  Ke7 {[%clk 0:01:49]} 16. Ne2 {[%clk 0:01:46]}  Ng4 {[%clk 0:01:26]} 17. hxg4 {[%clk 0:01:08]}  Qxh1+ {[%clk 0:01:26]} 18. Ng1 {[%clk 0:01:09]}  Bh2 {[%clk 0:01:17]} 19. Ke2 {[%clk 0:01:05]}  Bxg1 {[%clk 0:01:12]} 20. Qc5+ {[%clk 0:00:54]}  Kd7 {[%clk 0:00:55]} 21. Qd4+ {[%clk 0:00:50]}  Kc8 {[%clk 0:00:48]} 22. Qxg7 {[%clk 0:00:48]}  Rd8 {[%clk 0:00:45]} 23. Qxf7 {[%clk 0:00:48]}  a6 {[%clk 0:00:27]} 24. Bxe6+ {[%clk 0:00:46]}  Kb8 {[%clk 0:00:27]} 25. Qe7 {[%clk 0:00:46]}  Rd6 {[%clk 0:00:18]} 26. Bf5 {[%clk 0:00:35]}  Qc6 {[%clk 0:00:16]} 27. Rxg1 {[%clk 0:00:28]}  Qxc2+ {[%clk 0:00:15]} 28. Kf1 {[%clk 0:00:29]}  Qd1+ {[%clk 0:00:15]} 29. Kg2 {[%clk 0:00:28]}  Qa4 {[%clk 0:00:15]} 30. Rc1 {[%clk 0:00:26]}  Rc6 {[%clk 0:00:14]} 31. Re1 {[%clk 0:00:21]}  Ka7 {[%clk 0:00:13]} 32. Bd7 {[%clk 0:00:20]}  Qd4 {[%clk 0:00:11]} 33. Bxc6 {[%clk 0:00:20]}  Qxg4+ {[%clk 0:00:11]} 34. Kf1 {[%clk 0:00:19]}  Qh3+ {[%clk 0:00:11]} 35. Bg2 {[%clk 0:00:17]}  Qxd3+ {[%clk 0:00:12]} 36. Kg1 {[%clk 0:00:17]}  c6 {[%clk 0:00:12]} 37. Qe3+ {[%clk 0:00:16]}  Qxe3 {[%clk 0:00:12]} 38. Rxe3 {[%clk 0:00:17]}  Rd8 {[%clk 0:00:12]} 39. Re2 {[%clk 0:00:17]}  Rd1+ {[%clk 0:00:13]} 40. Kh2 {[%clk 0:00:17]}  Rd6 {[%clk 0:00:12]} 41. a3 {[%clk 0:00:17]}  Rh6+ {[%clk 0:00:13]} 42. Bh3 {[%clk 0:00:17]}  Kb6 {[%clk 0:00:14]} 43. f4 {[%clk 0:00:18]}  a5 {[%clk 0:00:14]} 44. f5 {[%clk 0:00:18]}  a4 {[%clk 0:00:15]} 45. Re6 {[%clk 0:00:18]}  Rh4 {[%clk 0:00:14]} 46. Kg3 {[%clk 0:00:17]}  Rc4 {[%clk 0:00:15]} 47. f6 {[%clk 0:00:17]}  Rc2 {[%clk 0:00:15]} 48. Re3 {[%clk 0:00:17]}  Rc1 {[%clk 0:00:13]} 49. Rf3 {[%clk 0:00:17]} 1-0


[Site "https://www.chess.com"]

[Event "Titled Tuesday Blitz May 23 Late 2023"]
[White "Dubreuil, Julien"]
[Black "Senft, Sean"]
[WhiteFideId "621285"]
[BlackFideId "2044960"]
[WhiteElo "2323"]
[BlackElo "1989"]
[Result "0-1"]
[Round "04"]
[TimeControl "180+2"]
[Date "2023.05.23"]
[WhiteClock "0:00:04"]
[BlackClock "0:00:19"]

1. e4 {[%clk 0:03:00]}  c5 {[%clk 0:02:59]} 2. Nf3 {[%clk 0:03:00]}  d6 {[%clk 0:03:00]} 3. d4 {[%clk 0:03:00]}  cxd4 {[%clk 0:03:01]} 4. Nxd4 {[%clk 0:03:00]}  Nf6 {[%clk 0:03:01]} 5. Nc3 {[%clk 0:03:00]}  a6 {[%clk 0:03:02]} 6. Bg5 {[%clk 0:03:00]}  e6 {[%clk 0:03:02]} 7. Qe2 {[%clk 0:03:00]}  Qb6 {[%clk 0:03:03]} 8. O-O-O {[%clk 0:03:00]}  Nc6 {[%clk 0:03:03]} 9. Nxc6 {[%clk 0:02:40]}  bxc6 {[%clk 0:03:04]} 10. Bxf6 {[%clk 0:02:37]}  gxf6 {[%clk 0:03:03]} 11. f4 {[%clk 0:02:20]}  Rb8 {[%clk 0:03:02]} 12. Na4 {[%clk 0:02:17]}  Qb4 {[%clk 0:02:57]} 13. b3 {[%clk 0:02:17]}  c5 {[%clk 0:02:36]} 14. Qc4 {[%clk 0:02:09]}  Qa3+ {[%clk 0:02:29]} 15. Kb1 {[%clk 0:02:05]}  Bd7 {[%clk 0:02:25]} 16. Nb2 {[%clk 0:01:57]}  Be7 {[%clk 0:02:06]} 17. f5 {[%clk 0:01:56]}  O-O {[%clk 0:02:03]} 18. g4 {[%clk 0:01:52]}  Kh8 {[%clk 0:02:03]} 19. Qc3 {[%clk 0:01:47]}  Rg8 {[%clk 0:02:00]} 20. Nc4 {[%clk 0:01:46]}  Qb4 {[%clk 0:01:57]} 21. Qxb4 {[%clk 0:01:45]}  Rxb4 {[%clk 0:01:57]} 22. Nxd6 {[%clk 0:01:44]}  Bc6 {[%clk 0:01:51]} 23. Bg2 {[%clk 0:01:17]}  Rxg4 {[%clk 0:01:50]} 24. Bf3 {[%clk 0:01:17]}  Rf4 {[%clk 0:01:49]} 25. Rhg1 {[%clk 0:01:15]}  h6 {[%clk 0:01:35]} 26. Nxf7+ {[%clk 0:01:09]}  Kh7 {[%clk 0:01:34]} 27. Bh5 {[%clk 0:01:08]}  Rfxe4 {[%clk 0:00:57]} 28. Bf3 {[%clk 0:00:37]}  exf5 {[%clk 0:00:44]} 29. Bh5 {[%clk 0:00:36]}  Rh4 {[%clk 0:00:28]} 30. Bg6+ {[%clk 0:00:24]}  Kg7 {[%clk 0:00:28]} 31. Nd6 {[%clk 0:00:15]}  Bxd6 {[%clk 0:00:22]} 32. Rxd6 {[%clk 0:00:16]}  Rbg4 {[%clk 0:00:20]} 33. Rxg4 {[%clk 0:00:13]}  fxg4 {[%clk 0:00:19]} 34. Rxc6 {[%clk 0:00:09]}  Kxg6 {[%clk 0:00:19]} 35. Rxc5 {[%clk 0:00:09]}  Rxh2 {[%clk 0:00:19]} 36. Rc4 {[%clk 0:00:09]}  Kg5 {[%clk 0:00:19]} 37. Rd4 {[%clk 0:00:04]}  g3 {[%clk 0:00:19]} 0-1


[Site "https://www.chess.com"]

[Event "Titled Tuesday Blitz May 23 Late 2023"]
[White "Srdanovic, Jovana"]
[Black "Alahakoon, Isuru"]
[WhiteFideId "954810"]
[BlackFideId "9900993"]
[WhiteElo "2169"]
[BlackElo "1953"]
[Result "0-1"]
[Round "04"]
[TimeControl "180+2"]
[Date "2023.05.23"]
[WhiteClock "0:00:04"]
[BlackClock "0:00:40"]

1. d4 {[%clk 0:02:58]}  d5 {[%clk 0:02:58]} 2. c4 {[%clk 0:02:58]}  e6 {[%clk 0:02:57]} 3. Nc3 {[%clk 0:02:57]}  Nf6 {[%clk 0:02:56]} 4. Bg5 {[%clk 0:02:55]}  c6 {[%clk 0:02:55]} 5. e3 {[%clk 0:02:52]}  Nbd7 {[%clk 0:02:54]} 6. cxd5 {[%clk 0:02:51]}  exd5 {[%clk 0:02:53]} 7. Bd3 {[%clk 0:02:51]}  Bd6 {[%clk 0:02:46]} 8. Qc2 {[%clk 0:02:50]}  h6 {[%clk 0:02:44]} 9. Bh4 {[%clk 0:02:49]}  O-O {[%clk 0:02:44]} 10. Nge2 {[%clk 0:02:49]}  Re8 {[%clk 0:02:44]} 11. g4 {[%clk 0:02:11]}  c5 {[%clk 0:02:21]} 12. g5 {[%clk 0:01:57]}  Ne4 {[%clk 0:02:19]} 13. Nxd5 {[%clk 0:01:53]}  Nxg5 {[%clk 0:02:12]} 14. O-O-O {[%clk 0:01:26]}  cxd4 {[%clk 0:02:12]} 15. Nxd4 {[%clk 0:01:23]}  Nc5 {[%clk 0:02:10]} 16. Bf5 {[%clk 0:01:13]}  Qa5 {[%clk 0:01:50]} 17. f4 {[%clk 0:00:59]}  Nge4 {[%clk 0:01:34]} 18. Bxe4 {[%clk 0:00:45]}  Nxe4 {[%clk 0:01:33]} 19. Ne7+ {[%clk 0:00:22]}  Bxe7 {[%clk 0:01:09]} 20. Qxe4 {[%clk 0:00:21]}  Bg4 {[%clk 0:01:09]} 21. Bxe7 {[%clk 0:00:13]}  Qc7+ {[%clk 0:01:04]} 22. Kb1 {[%clk 0:00:09]}  Bxd1 {[%clk 0:01:03]} 23. Rxd1 {[%clk 0:00:08]}  Qxe7 {[%clk 0:01:02]} 24. Qg2 {[%clk 0:00:07]}  Qxe3 {[%clk 0:00:57]} 25. Ka1 {[%clk 0:00:07]}  Qe4 {[%clk 0:00:52]} 26. Qg3 {[%clk 0:00:05]}  Rad8 {[%clk 0:00:49]} 27. Qc3 {[%clk 0:00:04]}  Rxd4 {[%clk 0:00:41]} 28. Qxd4 {[%clk 0:00:03]}  Qxd4 {[%clk 0:00:41]} 29. Rxd4 {[%clk 0:00:04]}  Re1+ {[%clk 0:00:40]} 30. Rd1 {[%clk 0:00:04]}  Rxd1# {[%clk 0:00:40]} 0-1


[Site "https://www.chess.com"]

[Event "Titled Tuesday Blitz May 23 Late 2023"]
[White "Rottenwohrer Suarez, Juan"]
[Black "Cooklev, Steven"]
[WhiteFideId "32068182"]
[BlackFideId "2050552"]
[WhiteElo "2174"]
[BlackElo "2315"]
[Result "1-0"]
[Round "04"]
[TimeControl "180+2"]
[Date "2023.05.23"]
[WhiteClock "0:00:06"]
[BlackClock "0:00:00"]

1. d4 {[%clk 0:03:00]}  Nf6 {[%clk 0:02:59]} 2. c4 {[%clk 0:03:01]}  e6 {[%clk 0:02:59]} 3. Nc3 {[%clk 0:03:01]}  Bb4 {[%clk 0:02:59]} 4. Nf3 {[%clk 0:03:01]}  d5 {[%clk 0:02:57]} 5. Qa4+ {[%clk 0:02:57]}  Nc6 {[%clk 0:02:57]} 6. e3 {[%clk 0:02:56]}  O-O {[%clk 0:02:55]} 7. Be2 {[%clk 0:02:54]}  dxc4 {[%clk 0:02:55]} 8. Bxc4 {[%clk 0:02:55]}  a6 {[%clk 0:02:51]} 9. O-O {[%clk 0:02:53]}  Bd6 {[%clk 0:02:43]} 10. Rd1 {[%clk 0:02:43]}  Qe7 {[%clk 0:02:37]} 11. a3 {[%clk 0:02:33]}  e5 {[%clk 0:02:37]} 12. d5 {[%clk 0:02:33]}  Na7 {[%clk 0:02:10]} 13. Be2 {[%clk 0:02:26]}  e4 {[%clk 0:02:02]} 14. Ne1 {[%clk 0:01:57]}  Bg4 {[%clk 0:01:36]} 15. Bxg4 {[%clk 0:01:21]}  Nxg4 {[%clk 0:01:37]} 16. h3 {[%clk 0:01:18]}  Nf6 {[%clk 0:00:34]} 17. f4 {[%clk 0:00:58]}  exf3 {[%clk 0:00:31]} 18. Nxf3 {[%clk 0:00:58]}  Rfe8 {[%clk 0:00:28]} 19. Re1 {[%clk 0:00:41]}  Bg3 {[%clk 0:00:24]} 20. Re2 {[%clk 0:00:40]}  Qc5 {[%clk 0:00:24]} 21. Qd4 {[%clk 0:00:37]}  Bd6 {[%clk 0:00:22]} 22. Qxc5 {[%clk 0:00:33]}  Bxc5 {[%clk 0:00:23]} 23. b4 {[%clk 0:00:33]}  Bd6 {[%clk 0:00:21]} 24. e4 {[%clk 0:00:29]}  Nh5 {[%clk 0:00:19]} 25. e5 {[%clk 0:00:26]}  Be7 {[%clk 0:00:19]} 26. Be3 {[%clk 0:00:17]}  g6 {[%clk 0:00:19]} 27. Rd1 {[%clk 0:00:16]}  Ng3 {[%clk 0:00:19]} 28. Red2 {[%clk 0:00:14]}  a5 {[%clk 0:00:19]} 29. bxa5 {[%clk 0:00:09]}  Bxa3 {[%clk 0:00:18]} 30. Bf2 {[%clk 0:00:06]}  Nf5 {[%clk 0:00:17]} 31. Ne4 {[%clk 0:00:07]}  Nb5 {[%clk 0:00:16]} 32. Nf6+ {[%clk 0:00:07]}  Kg7 {[%clk 0:00:16]} 33. Nxe8+ {[%clk 0:00:07]}  Rxe8 {[%clk 0:00:16]} 34. Rc2 {[%clk 0:00:06]}  Bb4 {[%clk 0:00:14]} 35. Rb2 {[%clk 0:00:06]}  Nc3 {[%clk 0:00:12]} 36. Ra1 {[%clk 0:00:03]}  Nxd5 {[%clk 0:00:12]} 37. a6 {[%clk 0:00:02]}  bxa6 {[%clk 0:00:12]} 38. Rxa6 {[%clk 0:00:03]}  c5 {[%clk 0:00:12]} 39. Ra7 {[%clk 0:00:02]}  Rc8 {[%clk 0:00:12]} 40. Rb7 {[%clk 0:00:03]}  Bc3 {[%clk 0:00:12]} 41. Rc2 {[%clk 0:00:03]}  Ba5 {[%clk 0:00:11]} 42. e6 {[%clk 0:00:03]}  Nd6 {[%clk 0:00:10]} 43. Rd7 {[%clk 0:00:02]}  Ne4 {[%clk 0:00:08]} 44. Rxd5 {[%clk 0:00:02]}  Nxf2 {[%clk 0:00:08]} 45. Kxf2 {[%clk 0:00:01]}  fxe6 {[%clk 0:00:09]} 46. Rd6 {[%clk 0:00:01]}  c4 {[%clk 0:00:08]} 47. Rd7+ {[%clk 0:00:02]}  Kf6 {[%clk 0:00:08]} 48. Rd6 {[%clk 0:00:02]}  c3 {[%clk 0:00:08]} 49. Ra6 {[%clk 0:00:03]}  Bb4 {[%clk 0:00:08]} 50. Ke2 {[%clk 0:00:04]}  Rd8 {[%clk 0:00:07]} 51. Ra4 {[%clk 0:00:04]}  Rb8 {[%clk 0:00:05]} 52. Nd4 {[%clk 0:00:03]}  e5 {[%clk 0:00:05]} 53. Nc6 {[%clk 0:00:04]}  Rc8 {[%clk 0:00:02]} 54. Nxb4 {[%clk 0:00:04]}  Rc4 {[%clk 0:00:03]} 55. Nd5+ {[%clk 0:00:04]}  Ke6 {[%clk 0:00:03]} 56. Rxc4 {[%clk 0:00:05]}  Kxd5 {[%clk 0:00:00]} 57. R4xc3 {[%clk 0:00:06]} 1-0


[Site "https://www.chess.com"]